[Event "24th European Women Club Cup 2019"]
[Site "Ulcinj"]
[Date "2019.11.13"]
[Round "4.14"]
[White "Ovod, Evgenija"]
[Black "Caglar, Sila"]
[Result "1/2-1/2"]
[ECO "B06"]
[WhiteElo "2347"]
[BlackElo "2242"]
[Annotator "NA"]
[PlyCount "102"]
[EventDate "2019.11.10"]
[EventType "team-tourn"]
[EventCountry "MNE"]
[SourceTitle "playchess.com"]
[Source "ChessBase"]
[SourceQuality "1"]
[WhiteTeam "SPB"]
[BlackTeam "Maribor"]
[TimeControl "40/5400+30:1800+30"]

1. e4 {[%emt 0:00:00]} g6 {[%emt 0:00:00]} 2. d4 {[%emt 0:00:00]} Bg7 {[%emt 0:00:00]} 3. c3 {[%emt 0:00:00]} d6 {[%emt 0:00:00]} 4. Bd3 {[%emt 0:00:01]} Nf6 {[%emt 0:00:00]} 5. Nf3 {[%emt 0:00:12]} O-O {[%emt 0:00:03]} 6. O-O {[%emt 0:00:04]} Nc6 {[%emt 0:00:05]} 7. Re1 {[%emt 0:01:28]} e5 {[%emt 0:00:15]} 8. Nbd2 {[%emt 0:00:39]} a5 {[%emt 0:00:08]} 9. Bb5 {[%emt 0:08:25]} Bd7 {[%emt 0:00:38]} 10. a4 {[%emt 0:07:21]} exd4 {[%emt 0:02:47]} 11. cxd4 {[%emt 0:03:23]} Re8 {[%emt 0:04:04]} 12. h3 {[%emt 0:04:06]} Nb4 {[%emt 0:15:04]} 13. Bf1 {[%emt 0:00:12]} Bc6 {[%emt 0:02:53]} 14. d5 {[%emt 0:00:27]} Bd7 {[%emt 0:01:57]} 15. Qb3 {[%emt 0:07:54]} b6 {[%emt 0:05:15]} 16. Bc4 {[%emt 0:16:48]} Qe7 {[%emt 0:13:10]} 17. Re2 {[%emt 0:04:55]} Bc8 {[%emt 0:19:18]} 18. Nd4 {[%emt 0:22:49]} Nd7 {[%emt 0:03:43]} 19. Nb5 {[%emt 0:00:08]} Ba6 {[%emt 0:04:58]} 20. Ra3 {[%emt 0:04:22]} Nc5 {[%emt 0:06:37]} 21. Qd1 {[%emt 0:00:13]} Qd7 {[%emt 0:00:51]} 22. f3 {[%emt 0:09:33]} c6 {[%emt 0:04:42]} 23. dxc6 {[%emt 0:00:47]} Qxc6 {[%emt 0:00:48]} 24. b3 {[%emt 0:03:09]} Bb7 {[%emt 0:05:50]} 25. Nf1 {[%emt 0:00:51]} d5 {[%emt 0:06:38]} 26. exd5 {[%emt 0:00:05]} Nxd5 {[%emt 0:00:02]} 27. Raa2 {[%emt 0:01:49]} Nc3 {[%emt 0:01:57]} 28. Nxc3 {[%emt 0:01:44]} Bxc3 {[%emt 0:00:02]} 29. Bb5 {[%emt 0:00:08]} Red8 {[%emt 0:01:58]} 30. Qxd8+ {[%emt 0:00:36]} Rxd8 {[%emt 0:00:01]} 31. Bxc6 {[%emt 0:00:02]} Bxc6 {[%emt 0:00:02]} 32. Bb2 {[%emt 0:00:10]} Bb4 {[%emt 0:00:34]} 33. Bf6 {[%emt 0:00:33]} Rd6 {[%emt 0:00:49]} 34. Be5 {[%emt 0:00:52]} Rd7 {[%emt 0:01:18]} 35. Nd2 {[%emt 0:00:51]} f5 {[%emt 0:00:16]} 36. Rc2 {[%emt 0:01:24]} Bb7 {[%emt 0:00:41]} 37. Nc4 {[%emt 0:01:43]} Rd1+ {[%emt 0:00:02]} 38. Kh2 {[%emt 0:00:06]} Ba6 {[%emt 0:00:56]} 39. Bc7 {[%emt 0:00:11]} Nxb3 {[%emt 0:00:16]} 40. Bxb6 {[%emt 0:00:00]} Na1 {[%emt 0:00:00]} 41. Bxa5 {[%emt 0:04:32]} Nxc2 {[%emt 0:05:47]} 42. Rxc2 {[%emt 0:00:14]} Bxa5 {[%emt 0:01:36]} 43. Nxa5 {[%emt 0:00:05]} Ra1 {[%emt 0:00:09]} 44. Nc6 {[%emt 0:02:21]} Rxa4 {[%emt 0:00:41]} 45. Ne5 {[%emt 0:00:43]} Rb4 {[%emt 0:06:03]} 46. Rc6 {[%emt 0:03:49]} Be2 {[%emt 0:04:03]} 47. Rc8+ {[%emt 0:04:34]} Kg7 {[%emt 0:00:05]} 48. Rc2 {[%emt 0:01:27]} Bb5 {[%emt 0:01:08]} 49. Rc7+ {[%emt 0:04:17]} Kf6 {[%emt 0:00:20]} 50. Nd7+ {[%emt 0:00:31]} Bxd7 {[%emt 0:00:05]} 51. Rxd7 {[%emt 0:00:07]} h5 1/2-1/2

[Event "24th European Women Club Cup 2019"]
[Site "Ulcinj"]
[Date "2019.11.13"]
[Round "4.15"]
[White "Vidic, Teja"]
[Black "Belenkaya, Dina"]
[Result "1-0"]
[ECO "B01"]
[WhiteElo "2189"]
[BlackElo "2302"]
[Annotator "NA"]
[PlyCount "75"]
[EventDate "2019.11.10"]
[EventType "team-tourn"]
[EventCountry "MNE"]
[SourceTitle "playchess.com"]
[Source "ChessBase"]
[SourceQuality "1"]
[WhiteTeam "Maribor"]
[BlackTeam "SPB"]
[TimeControl "40/5400+30:1800+30"]

1. e4 {[%emt 0:00:00]} d5 {[%emt 0:00:00]} 2. exd5 {[%emt 0:00:00]} Qxd5 {[%emt 0:00:00]} 3. Nc3 {[%emt 0:00:00]} Qd8 {[%emt 0:00:00]} 4. Nf3 {[%emt 0:00:34]} Nf6 {[%emt 0:00:19]} 5. d4 {[%emt 0:01:33]} c6 {[%emt 0:00:24]} 6. g3 {[%emt 0:02:24]} g6 {[%emt 0:01:27]} 7. Bg2 {[%emt 0:02:07]} Bg7 {[%emt 0:00:13]} 8. O-O {[%emt 0:00:23]} O-O {[%emt 0:00:14]} 9. h3 {[%emt 0:05:48]} h5 {[%emt 0:05:31]} 10. Re1 {[%emt 0:02:24]} Na6 {[%emt 0:13:04]} 11. Bg5 {[%emt 0:11:39]} Nc7 {[%emt 0:01:57]} 12. Qe2 {[%emt 0:05:39]} Ne6 {[%emt 0:08:27]} 13. Be3 {[%emt 0:05:45]} Qc7 {[%emt 0:03:21]} 14. Rad1 {[%emt 0:02:39]} Rd8 {[%emt 0:07:00]} 15. Ne5 {[%emt 0:06:54]} a6 {[%emt 0:13:50]} 16. Qc4 {[%emt 0:10:51]} Ne8 {[%emt 0:07:46]} 17. Qb3 {[%emt 0:18:39]} Bxe5 {[%emt 0:06:32]} 18. dxe5 {[%emt 0:00:05]} Rxd1 {[%emt 0:00:20]} 19. Rxd1 {[%emt 0:00:58]} Qxe5 {[%emt 0:00:44]} 20. Na4 {[%emt 0:01:17]} Nd6 {[%emt 0:04:06]} 21. c4 {[%emt 0:04:13]} b5 {[%emt 0:15:38]} 22. cxb5 {[%emt 0:01:36]} Qxb5 {[%emt 0:02:08]} 23. Qc2 {[%emt 0:02:16]} Bb7 {[%emt 0:01:16]} 24. Nc5 {[%emt 0:01:53]} Nxc5 {[%emt 0:00:26]} 25. Bxc5 {[%emt 0:03:20]} Rd8 {[%emt 0:01:51]} 26. b4 {[%emt 0:00:09]} Ba8 {[%emt 0:00:16]} 27. Bf1 {[%emt 0:00:46]} Qb7 {[%emt 0:00:08]} 28. Qa4 {[%emt 0:00:14]} Qb8 {[%emt 0:05:01]} 29. Qxa6 {[%emt 0:01:23]} Rd7 {[%emt 0:00:49]} 30. Bg2 {[%emt 0:01:06]} Bb7 {[%emt 0:00:14]} 31. Qe2 {[%emt 0:00:47]} Qa8 {[%emt 0:00:38]} 32. h4 {[%emt 0:02:42]} Qa4 {[%emt 0:00:39]} 33. Bh3 {[%emt 0:01:19]} Rd8 {[%emt 0:00:08]} 34. Rd2 {[%emt 0:00:28]} Kf8 {[%emt 0:01:21]} 35. Qe5 {[%emt 0:00:40]} f6 {[%emt 0:00:14]} 36. Qe3 {[%emt 0:00:20]} g5 {[%emt 0:01:26]} 37. hxg5 {[%emt 0:00:14]} Bc8 {[%emt 0:00:29]} 38. gxf6 {[%emt 0:00:20]} 1-0

[Event "24th European Women Club Cup 2019"]
[Site "Ulcinj"]
[Date "2019.11.13"]
[Round "4.16"]
[White "Styazhkina, Anna"]
[Black "Mihevc-Mohr, Narcisa"]
[Result "1-0"]
[ECO "B34"]
[WhiteElo "2280"]
[BlackElo "1982"]
[Annotator "NA"]
[PlyCount "75"]
[EventDate "2019.11.10"]
[EventType "team-tourn"]
[EventCountry "MNE"]
[SourceTitle "playchess.com"]
[Source "ChessBase"]
[SourceQuality "1"]
[WhiteTeam "SPB"]
[BlackTeam "Maribor"]
[TimeControl "40/5400+30:1800+30"]

1. e4 {[%emt 0:00:00]} c5 {[%emt 0:00:00]} 2. Nf3 {[%emt 0:00:00]} Nc6 {[%emt 0:00:00]} 3. d4 {[%emt 0:00:02]} cxd4 {[%emt 0:00:20]} 4. Nxd4 {[%emt 0:00:11]} Nf6 {[%emt 0:00:22]} 5. Nc3 {[%emt 0:00:26]} e5 {[%emt 0:00:22]} 6. Ndb5 {[%emt 0:09:41]} d6 {[%emt 0:00:09]} 7. Bg5 {[%emt 0:02:08]} a6 {[%emt 0:00:18]} 8. Bxf6 {[%emt 0:04:48]} gxf6 {[%emt 0:02:45]} 9. Na3 {[%emt 0:00:13]} b5 {[%emt 0:02:21]} 10. Nd5 {[%emt 0:01:50]} Bg7 {[%emt 0:00:42]} 11. c3 {[%emt 0:04:08]} f5 {[%emt 0:04:52]} 12. Bd3 {[%emt 0:14:04]} Be6 {[%emt 0:03:03]} 13. Qh5 {[%emt 0:05:10]} O-O {[%emt 0:10:05]} 14. exf5 {[%emt 0:07:00]} e4 {[%emt 0:49:01]} 15. Bxe4 {[%emt 0:04:16]} Bxd5 {[%emt 0:00:32]} 16. Bxd5 {[%emt 0:00:08]} Qe7+ {[%emt 0:05:43]} 17. Kf1 {[%emt 0:05:32]} Rac8 {[%emt 0:02:35]} 18. Re1 {[%emt 0:06:01]} Qf6 {[%emt 0:11:29]} 19. Nc2 {[%emt 0:03:21]} Ne5 {[%emt 0:00:45]} 20. Ne3 {[%emt 0:03:27]} b4 {[%emt 0:02:53]} 21. c4 {[%emt 0:09:38]} Nd3 {[%emt 0:00:19]} 22. Rd1 {[%emt 0:03:49]} Nxb2 {[%emt 0:00:48]} 23. Rd2 {[%emt 0:06:25]} Qc3 {[%emt 0:00:19]} 24. Ke2 {[%emt 0:02:09]} Qe5 {[%emt 0:00:25]} 25. Rc1 {[%emt 0:03:31]} Na4 {[%emt 0:00:12]} 26. Kf1 {[%emt 0:00:01]} Qf4 {[%emt 0:00:58]} 27. g3 {[%emt 0:02:18]} Qh6 {[%emt 0:00:54]} 28. Qxh6 {[%emt 0:01:58]} Bxh6 {[%emt 0:00:01]} 29. f4 {[%emt 0:00:12]} Bg7 {[%emt 0:00:42]} 30. Bb7 {[%emt 0:00:58]} Rcd8 {[%emt 0:01:01]} 31. Nd5 {[%emt 0:00:53]} Nc5 {[%emt 0:00:54]} 32. Bc6 {[%emt 0:00:18]} Ne4 {[%emt 0:00:24]} 33. Ne7+ {[%emt 0:00:39]} Kh8 {[%emt 0:00:15]} 34. Bxe4 {[%emt 0:00:07]} Rde8 {[%emt 0:00:05]} 35. f6 {[%emt 0:00:13]} Bxf6 {[%emt 0:00:10]} 36. Nd5 {[%emt 0:00:04]} Bc3 {[%emt 0:00:47]} 37. Nxc3 {[%emt 0:00:10]} bxc3 {[%emt 0:00:05]} 38. Re2 {[%emt 0:00:06]} 1-0

[Event "24th European Women Club Cup 2019"]
[Site "Ulcinj"]
[Date "2019.11.13"]
[Round "4.17"]
[White "Salimova, Nurgyul"]
[Black "Injac, Teodora"]
[Result "1-0"]
[ECO "E90"]
[WhiteElo "2370"]
[BlackElo "2257"]
[Annotator "NA"]
[PlyCount "211"]
[EventDate "2019.11.10"]
[EventType "team-tourn"]
[EventCountry "MNE"]
[SourceTitle "playchess.com"]
[Source "ChessBase"]
[SourceQuality "1"]
[WhiteTeam "Asseco SEE"]
[BlackTeam "Jelica PEP"]
[TimeControl "40/5400+30:1800+30"]

1. d4 {[%emt 0:00:00]} Nf6 {[%emt 0:00:00]} 2. c4 {[%emt 0:00:00]} g6 {[%emt 0:03:30]} 3. Nc3 {[%emt 0:00:01]} Bg7 {[%emt 0:00:06]} 4. e4 {[%emt 0:00:14]} d6 {[%emt 0:00:05]} 5. Nf3 {[%emt 0:00:29]} O-O {[%emt 0:00:18]} 6. h3 {[%emt 0:00:30]} e5 {[%emt 0:01:41]} 7. d5 {[%emt 0:00:21]} a5 {[%emt 0:02:38]} 8. g4 {[%emt 0:01:29]} Na6 {[%emt 0:00:20]} 9. Be3 {[%emt 0:00:32]} Nc5 {[%emt 0:11:44]} 10. Nd2 {[%emt 0:02:54]} c6 {[%emt 0:00:25]} 11. Be2 {[%emt 0:02:35]} Bd7 {[%emt 0:02:44]} 12. g5 {[%emt 0:17:37]} Ne8 {[%emt 0:02:54]} 13. h4 {[%emt 0:02:20]} Nc7 {[%emt 0:14:01]} 14. Nb3 {[%emt 0:17:54]} N7a6 {[%emt 0:11:55]} 15. Nxc5 {[%emt 0:04:15]} Nxc5 {[%emt 0:00:26]} 16. Bxc5 {[%emt 0:14:24]} dxc5 {[%emt 0:00:06]} 17. Qd2 {[%emt 0:00:53]} a4 {[%emt 0:13:26]} 18. O-O-O {[%emt 0:04:49]} a3 {[%emt 0:07:45]} 19. b3 {[%emt 0:00:32]} Qa5 {[%emt 0:00:18]} 20. h5 {[%emt 0:04:35]} Rfd8 {[%emt 0:02:03]} 21. hxg6 {[%emt 0:01:48]} hxg6 {[%emt 0:00:32]} 22. Qe3 {[%emt 0:01:39]} cxd5 {[%emt 0:06:54]} 23. Nxd5 {[%emt 0:01:37]} Be6 {[%emt 0:00:28]} 24. Nf6+ {[%emt 0:02:44]} Kf8 {[%emt 0:00:14]} 25. Rd5 {[%emt 0:06:29]} Bxd5 {[%emt 0:05:50]} 26. exd5 {[%emt 0:02:08]} Ra6 {[%emt 0:01:44]} 27. Ne4 {[%emt 0:00:36]} Qc7 {[%emt 0:05:44]} 28. Qxc5+ {[%emt 0:01:54]} Qxc5 {[%emt 0:00:13]} 29. Nxc5 {[%emt 0:00:01]} Ra7 {[%emt 0:00:47]} 30. Ne4 {[%emt 0:01:13]} b5 {[%emt 0:00:56]} 31. Rd1 {[%emt 0:03:08]} bxc4 {[%emt 0:00:19]} 32. Bxc4 {[%emt 0:00:22]} Rb7 {[%emt 0:02:28]} 33. Kc2 {[%emt 0:01:19]} Rb6 {[%emt 0:00:25]} 34. d6 {[%emt 0:00:29]} Kg8 {[%emt 0:02:07]} 35. f3 {[%emt 0:00:40]} Kf8 {[%emt 0:00:37]} 36. Rd5 {[%emt 0:01:20]} Kg8 {[%emt 0:00:59]} 37. Ra5 {[%emt 0:01:57]} Rb7 {[%emt 0:00:54]} 38. Rxa3 {[%emt 0:00:31]} Bf8 {[%emt 0:00:27]} 39. Ra6 {[%emt 0:00:12]} Kg7 {[%emt 0:00:13]} 40. a4 {[%emt 0:00:00]} Rbd7 {[%emt 0:00:00]} 41. Bb5 {[%emt 0:05:19]} Rxd6 {[%emt 0:05:31]} 42. Nxd6 {[%emt 0:00:06]} Bxd6 {[%emt 0:00:09]} 43. Ra7 {[%emt 0:05:25]} Bc5 {[%emt 0:01:18]} 44. Rb7 {[%emt 0:00:52]} Be3 {[%emt 0:01:16]} 45. Bc4 {[%emt 0:00:46]} Bxg5 {[%emt 0:04:24]} 46. Rxf7+ {[%emt 0:00:06]} Kh6 {[%emt 0:00:03]} 47. a5 {[%emt 0:03:01]} Be3 {[%emt 0:01:37]} 48. a6 {[%emt 0:03:42]} Kg5 {[%emt 0:00:52]} 49. Bd3 {[%emt 0:02:01]} Ra8 {[%emt 0:03:07]} 50. b4 {[%emt 0:01:39]} Ra7 {[%emt 0:04:57]} 51. Rxa7 {[%emt 0:01:29]} Bxa7 {[%emt 0:00:02]} 52. Kc3 {[%emt 0:00:24]} Kf6 {[%emt 0:00:09]} 53. Kc4 {[%emt 0:00:39]} Ke6 {[%emt 0:00:33]} 54. Bxg6 {[%emt 0:03:31]} Kd6 {[%emt 0:00:27]} 55. Be4 {[%emt 0:00:45]} Bf2 {[%emt 0:01:26]} 56. Bg6 {[%emt 0:04:33]} Bg1 {[%emt 0:00:47]} 57. Kb5 {[%emt 0:00:50]} Kc7 {[%emt 0:00:36]} 58. Ka5 {[%emt 0:00:18]} Bb6+ {[%emt 0:00:08]} 59. Ka4 {[%emt 0:00:03]} Bf2 {[%emt 0:00:32]} 60. Kb3 {[%emt 0:00:09]} Bg1 {[%emt 0:00:21]} 61. Kc2 {[%emt 0:00:22]} Ba7 {[%emt 0:00:50]} 62. Bf7 {[%emt 0:00:13]} Bb6 {[%emt 0:00:29]} 63. Kd3 {[%emt 0:00:04]} Ba7 {[%emt 0:01:28]} 64. Ke4 {[%emt 0:00:10]} Kd6 {[%emt 0:00:05]} 65. Kf5 {[%emt 0:00:15]} Bf2 {[%emt 0:02:22]} 66. Be8 {[%emt 0:00:19]} Bd4 {[%emt 0:01:00]} 67. Ba4 {[%emt 0:00:37]} Bf2 {[%emt 0:00:49]} 68. Kf6 {[%emt 0:00:16]} Bd4 {[%emt 0:01:44]} 69. Kf7 {[%emt 0:00:06]} Be3 {[%emt 0:00:24]} 70. Ke8 {[%emt 0:00:11]} Kc7 {[%emt 0:01:22]} 71. Ke7 {[%emt 0:00:33]} Kb6 {[%emt 0:02:47]} 72. Ke6 {[%emt 0:00:43]} Bd4 {[%emt 0:00:58]} 73. Kd5 {[%emt 0:02:13]} Ba1 {[%emt 0:00:12]} 74. b5 {[%emt 0:00:42]} Bb2 {[%emt 0:00:12]} 75. Bc2 {[%emt 0:00:44]} Ba1 {[%emt 0:00:35]} 76. Bd3 {[%emt 0:00:21]} Bb2 {[%emt 0:00:17]} 77. Be4 {[%emt 0:01:15]} Ba1 {[%emt 0:00:12]} 78. Kc4 {[%emt 0:00:29]} Bb2 {[%emt 0:00:18]} 79. Bh7 {[%emt 0:01:01]} Ba1 {[%emt 0:00:15]} 80. Bg8 {[%emt 0:00:23]} Bb2 {[%emt 0:00:12]} 81. Bd5 {[%emt 0:00:16]} Ba1 {[%emt 0:00:09]} 82. Bc6 {[%emt 0:00:16]} Bb2 {[%emt 0:00:21]} 83. Kd5 {[%emt 0:00:10]} Ba1 {[%emt 0:00:52]} 84. Kd6 {[%emt 0:00:36]} Bd4 {[%emt 0:00:34]} 85. Ke6 {[%emt 0:00:14]} Bb2 {[%emt 0:01:33]} 86. Kd7 {[%emt 0:00:14]} Bd4 {[%emt 0:00:41]} 87. Kc8 {[%emt 0:00:14]} Ka7 {[%emt 0:00:23]} 88. Kc7 {[%emt 0:00:10]} Bb6+ {[%emt 0:01:24]} 89. Kd6 {[%emt 0:00:12]} Bd4 {[%emt 0:00:02]} 90. Kd5 {[%emt 0:00:06]} Bb2 {[%emt 0:00:29]} 91. Kc5 {[%emt 0:00:35]} Bd4+ {[%emt 0:00:27]} 92. Kc4 {[%emt 0:00:15]} Ba1 {[%emt 0:00:27]} 93. Bb7 {[%emt 0:00:58]} Kb6 {[%emt 0:00:49]} 94. Bc8 {[%emt 0:00:00]} Bb2 {[%emt 0:00:25]} 95. Kd5 {[%emt 0:00:12]} Bc3 {[%emt 0:00:43]} 96. Bb7 {[%emt 0:00:24]} Ba1 {[%emt 0:00:33]} 97. Kd6 {[%emt 0:00:12]} Bd4 {[%emt 0:00:09]} 98. Kd7 {[%emt 0:00:37]} Be3 {[%emt 0:00:49]} 99. Kc8 {[%emt 0:00:16]} Ka7 {[%emt 0:00:04]} 100. Kc7 {[%emt 0:00:25]} Bb6+ {[%emt 0:00:16]} 101. Kc6 {[%emt 0:00:13]} Bd4 {[%emt 0:00:46]} 102. Kd5 {[%emt 0:00:18]} Bb2 {[%emt 0:00:19]} 103. f4 {[%emt 0:00:26]} exf4 {[%emt 0:01:36]} 104. Kc5 {[%emt 0:00:06]} Bc1 {[%emt 0:04:31]} 105. b6+ {[%emt 0:00:06]} Kb8 {[%emt 0:00:02]} 106. Kc6 {[%emt 0:00:04]} 1-0

[Event "24th European Women Club Cup 2019"]
[Site "Ulcinj"]
[Date "2019.11.13"]
[Round "4.18"]
[White "Velikic, Adela"]
[Black "Krasteva, Beloslava"]
[Result "1-0"]
[ECO "B24"]
[WhiteElo "2275"]
[BlackElo "2261"]
[Annotator "NA"]
[PlyCount "112"]
[EventDate "2019.11.10"]
[EventType "team-tourn"]
[EventCountry "MNE"]
[SourceTitle "playchess.com"]
[Source "ChessBase"]
[SourceQuality "1"]
[WhiteTeam "Jelica PEP"]
[BlackTeam "Asseco SEE"]
[TimeControl "40/5400+30:1800+30"]

1. e4 {[%emt 0:00:00]} c5 {[%emt 0:00:00]} 2. Nc3 {[%emt 0:00:00]} Nc6 {[%emt 0:00:39]} 3. Nf3 {[%emt 0:00:00]} e5 {[%emt 0:01:07]} 4. Bc4 {[%emt 0:00:37]} Be7 {[%emt 0:01:14]} 5. d3 {[%emt 0:00:17]} d6 {[%emt 0:01:07]} 6. h3 {[%emt 0:00:52]} Nf6 {[%emt 0:02:41]} 7. a4 {[%emt 0:04:22]} a6 {[%emt 0:02:38]} 8. O-O {[%emt 0:03:20]} O-O {[%emt 0:00:51]} 9. Bg5 {[%emt 0:11:48]} Be6 {[%emt 0:02:26]} 10. Bxf6 {[%emt 0:06:49]} Bxf6 {[%emt 0:00:40]} 11. Nd5 {[%emt 0:02:59]} Rb8 {[%emt 0:02:49]} 12. a5 {[%emt 0:22:16]} Bxd5 {[%emt 0:15:13]} 13. Bxd5 {[%emt 0:00:18]} Nxa5 {[%emt 0:00:51]} 14. Qd2 {[%emt 0:01:31]} b6 {[%emt 0:01:14]} 15. c3 {[%emt 0:03:25]} Qc8 {[%emt 0:07:01]} 16. b4 {[%emt 0:01:11]} Nc6 {[%emt 0:00:59]} 17. Bxc6 {[%emt 0:01:28]} Qxc6 {[%emt 0:00:05]} 18. Rxa6 {[%emt 0:00:17]} cxb4 {[%emt 0:08:29]} 19. cxb4 {[%emt 0:00:09]} d5 {[%emt 0:00:16]} 20. Rc1 {[%emt 0:05:41]} Qd7 {[%emt 0:04:14]} 21. Qa2 {[%emt 0:02:57]} dxe4 {[%emt 0:05:45]} 22. dxe4 {[%emt 0:00:06]} Rfc8 {[%emt 0:04:37]} 23. Rxc8+ {[%emt 0:02:14]} Qxc8 {[%emt 0:00:35]} 24. Kh2 {[%emt 0:05:37]} h6 {[%emt 0:04:37]} 25. Ra7 {[%emt 0:02:01]} Rb7 {[%emt 0:02:22]} 26. Ra8 {[%emt 0:01:53]} Rb8 {[%emt 0:00:09]} 27. Rxb8 {[%emt 0:01:22]} Qxb8 {[%emt 0:00:02]} 28. Qd5 {[%emt 0:06:27]} b5 {[%emt 0:04:24]} 29. g3 {[%emt 0:01:43]} g6 {[%emt 0:04:35]} 30. Kg2 {[%emt 0:01:33]} Kg7 {[%emt 0:01:19]} 31. Ne1 {[%emt 0:01:16]} Be7 {[%emt 0:05:42]} 32. Nd3 {[%emt 0:00:16]} f6 {[%emt 0:01:16]} 33. Qd7 {[%emt 0:04:53]} Kf7 {[%emt 0:02:49]} 34. Nc5 {[%emt 0:01:21]} Qb6 {[%emt 0:01:48]} 35. Qd5+ {[%emt 0:02:05]} Kg7 {[%emt 0:00:45]} 36. Ne6+ {[%emt 0:03:08]} Kh7 {[%emt 0:01:36]} 37. Nc5 {[%emt 0:00:58]} Kg7 {[%emt 0:00:28]} 38. h4 {[%emt 0:01:06]} h5 {[%emt 0:02:13]} 39. Ne6+ {[%emt 0:00:08]} Kh7 {[%emt 0:03:24]} 40. Nc5 {[%emt 0:00:00]} Kg7 {[%emt 0:00:00]} 41. Qd7 {[%emt 0:17:06]} Kf7 {[%emt 0:02:52]} 42. Kh3 {[%emt 0:07:29]} Kf8 {[%emt 0:12:40]} 43. Ne6+ {[%emt 0:01:39]} Kf7 {[%emt 0:00:15]} 44. Nc7 {[%emt 0:01:04]} Qb8 {[%emt 0:08:35]} 45. Kg2 {[%emt 0:04:24]} Qd8 {[%emt 0:02:21]} 46. Qe6+ {[%emt 0:00:15]} Kf8 {[%emt 0:03:41]} 47. Nd5 {[%emt 0:00:35]} Qd6 {[%emt 0:01:21]} 48. Qc8+ {[%emt 0:00:19]} Kf7 {[%emt 0:02:56]} 49. Qb7 {[%emt 0:00:22]} f5 {[%emt 0:00:40]} 50. Qxb5 {[%emt 0:01:56]} fxe4 {[%emt 0:00:24]} 51. Qb7 {[%emt 0:00:26]} Ke6 {[%emt 0:01:22]} 52. Nxe7 {[%emt 0:00:30]} Qxe7 {[%emt 0:00:18]} 53. Qxe7+ {[%emt 0:00:46]} Kxe7 {[%emt 0:00:04]} 54. Kf1 {[%emt 0:00:05]} e3 {[%emt 0:01:51]} 55. f3 {[%emt 0:00:18]} Kd6 {[%emt 0:00:58]} 56. Ke2 {[%emt 0:00:06]} Kd5 1-0

[Event "24th European Women Club Cup 2019"]
[Site "Ulcinj"]
[Date "2019.11.13"]
[Round "4.19"]
[White "Djukic, Sandra"]
[Black "Eric, Jovana"]
[Result "1/2-1/2"]
[ECO "A12"]
[WhiteElo "2148"]
[BlackElo "2314"]
[Annotator "NA"]
[PlyCount "83"]
[EventDate "2019.11.10"]
[EventType "team-tourn"]
[EventCountry "MNE"]
[SourceTitle "playchess.com"]
[Source "ChessBase"]
[SourceQuality "1"]
[WhiteTeam "Asseco SEE"]
[BlackTeam "Jelica PEP"]
[TimeControl "40/5400+30:1800+30"]

1. Nf3 {[%emt 0:00:00]} d5 {[%emt 0:00:00]} 2. c4 {[%emt 0:03:52]} c6 {[%emt 0:01:34]} 3. b3 {[%emt 0:04:56]} Nf6 {[%emt 0:01:48]} 4. Bb2 {[%emt 0:03:21]} Bf5 {[%emt 0:01:04]} 5. e3 {[%emt 0:07:57]} e6 {[%emt 0:02:38]} 6. Be2 {[%emt 0:03:18]} h6 {[%emt 0:02:34]} 7. O-O {[%emt 0:01:24]} Bd6 {[%emt 0:03:04]} 8. d3 {[%emt 0:07:38]} O-O {[%emt 0:05:08]} 9. Nc3 {[%emt 0:18:50]} Bh7 {[%emt 0:12:47]} 10. Re1 {[%emt 0:05:34]} Nbd7 {[%emt 0:04:39]} 11. Qd2 {[%emt 0:05:04]} e5 {[%emt 0:11:13]} 12. cxd5 {[%emt 0:01:14]} Nxd5 {[%emt 0:00:18]} 13. Nxd5 {[%emt 0:06:46]} cxd5 {[%emt 0:00:05]} 14. Rec1 {[%emt 0:03:45]} Qe7 {[%emt 0:02:13]} 15. Qa5 {[%emt 0:05:19]} Nb6 {[%emt 0:02:45]} 16. a3 {[%emt 0:01:31]} Kh8 {[%emt 0:04:18]} 17. g3 {[%emt 0:03:15]} f5 {[%emt 0:03:57]} 18. d4 {[%emt 0:00:36]} e4 {[%emt 0:03:45]} 19. Ne5 {[%emt 0:00:06]} g5 {[%emt 0:03:45]} 20. Bc3 {[%emt 0:04:14]} f4 {[%emt 0:12:26]} 21. Bb4 {[%emt 0:01:44]} Rad8 {[%emt 0:10:03]} 22. Bh5 {[%emt 0:04:01]} Qf6 {[%emt 0:04:03]} 23. Bxd6 {[%emt 0:02:27]} Rxd6 {[%emt 0:00:06]} 24. Ra2 {[%emt 0:04:12]} Nd7 {[%emt 0:04:29]} 25. Nxd7 {[%emt 0:00:50]} Rxd7 {[%emt 0:00:04]} 26. Qd2 {[%emt 0:00:33]} Qe6 {[%emt 0:00:30]} 27. g4 {[%emt 0:00:28]} Bg6 {[%emt 0:00:53]} 28. Bxg6 {[%emt 0:00:07]} Qxg6 {[%emt 0:01:01]} 29. Rac2 {[%emt 0:00:52]} Qe6 {[%emt 0:00:22]} 30. h3 {[%emt 0:00:03]} h5 {[%emt 0:00:28]} 31. Qb4 {[%emt 0:00:01]} Rdf7 {[%emt 0:00:29]} 32. Rc7 {[%emt 0:01:22]} fxe3 {[%emt 0:00:51]} 33. fxe3 {[%emt 0:00:17]} Qf6 {[%emt 0:00:50]} 34. Rxf7 {[%emt 0:00:17]} Qxf7 {[%emt 0:00:04]} 35. Qd6 {[%emt 0:00:46]} Kg8 {[%emt 0:01:25]} 36. Qe5 {[%emt 0:00:32]} Qf2+ {[%emt 0:01:26]} 37. Kh1 {[%emt 0:00:04]} Qf3+ {[%emt 0:00:05]} 38. Kh2 {[%emt 0:00:10]} Qe2+ {[%emt 0:00:53]} 39. Kh1 {[%emt 0:00:10]} Qf3+ {[%emt 0:00:46]} 40. Kh2 {[%emt 0:00:00]} Qf2+ {[%emt 0:00:00]} 41. Kh1 {[%emt 0:00:20]} Qf3+ {[%emt 0:08:42]} 42. Kh2 {[%emt 0:00:05]} 1/2-1/2